[Event "XVI Memorial Lezcano Montalvo 2024"]
[Site "Gran Canaria"]
[Date "2024.03.26"]
[Round "4.11"]
[White "Garcia Blanco, Omar"]
[Black "Estremera Panos, Sergio"]
[Result "1-0"]
[ECO "B68"]
[WhiteElo "2377"]
[BlackElo "2233"]
[Annotator "RC"]
[PlyCount "127"]
[EventDate "2024.03.23"]
[EventType "swiss"]
[EventCountry "ESP"]
[SourceTitle "playchess.com"]
[Source "ChessBase"]
[SourceQuality "1"]
[TimeControl "5400+30"]

1. e4 {[%emt 0:00:07]} c5 {[%emt 0:00:17]} 2. Nf3 {[%emt 0:00:08]} Nc6 {[%emt 0:00:17]} 3. d4 {[%emt 0:00:42]} cxd4 {[%emt 0:00:07]} 4. Nxd4 {[%emt 0:00:07]} Nf6 {[%emt 0:01:02]} 5. Nc3 {[%emt 0:00:27]} d6 {[%emt 0:01:11]} 6. Bg5 {[%emt 0:01:28]} e6 {[%emt 0:00:49]} 7. Qd2 {[%emt 0:02:30]} Be7 {[%emt 0:00:56]} 8. O-O-O {[%emt 0:01:27]} a6 {[%emt 0:01:58]} 9. f4 {[%emt 0:03:32]} Bd7 {[%emt 0:00:33]} 10. Nf3 {[%emt 0:04:45]} b5 {[%emt 0:00:49]} 11. a3 {[%emt 0:09:36]} b4 {[%emt 0:06:59]} 12. axb4 {[%emt 0:00:36]} Nxb4 {[%emt 0:00:12]} 13. Bc4 {[%emt 0:07:31]} Qc7 {[%emt 0:38:30]} 14. Qe2 {[%emt 0:23:17]} O-O {[%emt 0:21:17]} 15. e5 {[%emt 0:00:58]} dxe5 {[%emt 0:01:32]} 16. fxe5 {[%emt 0:01:46]} Nfd5 {[%emt 0:00:13]} 17. Bxd5 {[%emt 0:02:26]} Bxg5+ {[%emt 0:00:43]} 18. Nxg5 {[%emt 0:00:07]} exd5 {[%emt 0:00:24]} 19. Nxd5 {[%emt 0:18:04]} Nxd5 {[%emt 0:00:15]} 20. Rxd5 {[%emt 0:00:21]} Bf5 {[%emt 0:00:36]} 21. Rf1 {[%emt 0:04:02]} Bg6 {[%emt 0:00:19]} 22. e6 {[%emt 0:01:25]} fxe6 {[%emt 0:00:36]} 23. Rxf8+ {[%emt 0:04:39]} Rxf8 {[%emt 0:00:02]} 24. Nxe6 {[%emt 0:00:15]} Rf1+ {[%emt 0:00:18]} 25. Rd1 {[%emt 0:00:10]} Rxd1+ {[%emt 0:01:27]} 26. Qxd1 {[%emt 0:00:09]} Qa5 {[%emt 0:05:41]} 27. Qd8+ {[%emt 0:00:05]} Qxd8 {[%emt 0:00:06]} 28. Nxd8 {[%emt 0:00:03]} Kf8 {[%emt 0:00:58]} 29. Ne6+ {[%emt 0:00:20]} Ke7 {[%emt 0:00:11]} 30. Nc5 {[%emt 0:01:11]} a5 {[%emt 0:00:53]} 31. Kd2 {[%emt 0:01:08]} Bf7 {[%emt 0:00:28]} 32. Ke3 {[%emt 0:00:24]} Bd5 {[%emt 0:00:18]} 33. g3 {[%emt 0:00:08]} Kd6 {[%emt 0:00:15]} 34. Kd4 {[%emt 0:00:07]} h6 {[%emt 0:04:18]} 35. c4 {[%emt 0:00:28]} Bf3 {[%emt 0:00:44]} 36. Nb3 {[%emt 0:00:22]} a4 {[%emt 0:00:13]} 37. Nc5 {[%emt 0:00:13]} Bc6 {[%emt 0:01:19]} 38. Nd3 {[%emt 0:00:07]} Be8 {[%emt 0:01:08]} 39. Ne5 {[%emt 0:00:20]} Ke6 {[%emt 0:00:33]} 40. c5 {[%emt 0:00:11]} Bb5 {[%emt 0:00:40]} 41. Nc4 {[%emt 0:01:31]} g5 {[%emt 0:04:44]} 42. Nd6 {[%emt 0:00:23]} Bc6 {[%emt 0:00:16]} 43. Kc4 {[%emt 0:00:24]} h5 {[%emt 0:00:40]} 44. Kb4 {[%emt 0:00:12]} h4 {[%emt 0:00:12]} 45. Ka5 {[%emt 0:03:08]} hxg3 {[%emt 0:00:31]} 46. hxg3 {[%emt 0:00:05]} Kd5 {[%emt 0:00:30]} 47. Kb6 {[%emt 0:00:07]} Bd7 {[%emt 0:00:28]} 48. Nb5 {[%emt 0:02:41]} Ke4 {[%emt 0:02:30]} 49. c6 {[%emt 0:00:30]} Bh3 {[%emt 0:00:41]} 50. Nd6+ {[%emt 0:01:06]} Kd3 {[%emt 0:02:48]} 51. Ka5 {[%emt 0:01:46]} Kc2 {[%emt 0:00:13]} 52. Kxa4 {[%emt 0:00:41]} Kxb2 {[%emt 0:00:05]} 53. Kb4 {[%emt 0:00:11]} Kc2 {[%emt 0:00:08]} 54. Kc4 {[%emt 0:00:18]} Kd2 {[%emt 0:03:10]} 55. Kd4 {[%emt 0:01:46]} Ke2 {[%emt 0:00:15]} 56. Ne4 {[%emt 0:00:07]} Bc8 {[%emt 0:00:55]} 57. Nxg5 {[%emt 0:05:21]} Kf2 {[%emt 0:00:02]} 58. Ne4+ {[%emt 0:00:08]} Kf3 {[%emt 0:00:09]} 59. Ke5 {[%emt 0:00:12]} Ba6 {[%emt 0:01:33]} 60. Nd6 {[%emt 0:02:33]} Kxg3 {[%emt 0:00:14]} 61. c7 {[%emt 0:00:07]} Kg4 {[%emt 0:00:59]} 62. Kd5 {[%emt 0:00:06]} Kf4 {[%emt 0:00:07]} 63. Kc6 {[%emt 0:00:07]} Ke5 {[%emt 0:00:09]} 64. Nb7 {[%emt 0:00:10]} 1-0

[Event "XVI Memorial Lezcano Montalvo 2024"]
[Site "Gran Canaria"]
[Date "2024.03.26"]
[Round "4.12"]
[White "Perez Garcia, Jimena"]
[Black "Strikovic, Aleksa"]
[Result "0-1"]
[ECO "A91"]
[WhiteElo "1992"]
[BlackElo "2430"]
[Annotator "TA"]
[PlyCount "74"]
[EventDate "2024.03.23"]
[EventType "swiss"]
[EventCountry "ESP"]
[SourceTitle "playchess.com"]
[Source "ChessBase"]
[SourceQuality "1"]
[TimeControl "5400+30"]

{[%evp 14,74,76,69,57,58,54,0,25,11,23,29,41,0,31,0,0,-130,-115,-191,-184,-191,-60,-358,-356,-414,-424,-416,-451,-442,-437,-457,-477,-485,-482,-464,-469,-493,-489,-497,-481,-546,-553,-603,-599,-610,-610,-622,-623,-715,-687,-965,-996,-790,-633,-664,-656,-750,-755,-929,-926,-979,-888]} 1. d4 {[%emt 0:00:04]} f5 {[%emt 0:00:12]} 2. g3 {[%emt 0:00:22]} Nf6 {[%emt 0:00:22]} 3. Bg2 {[%emt 0:00:24]} e6 {[%emt 0:00:28][%cal Be7e6,Be6e5,Be5e4][%mdl 32]} 4. Nh3 {[%emt 0:00:31]} d6 {[%emt 0:00:09]} 5. O-O {[%emt 0:01:17]} Be7 {[%emt 0:00:14]} 6. c4 {[%emt 1:30:52]} O-O {[%emt 0:00:14]} 7. b3 {[%emt 0:00:00]} e5 {[%emt 0:00:09]} 8. Bb2 {[%emt 0:00:00]} e4 {[%emt 0:01:30]} 9. d5 {[%emt 0:00:00]} c6 {[%emt 0:02:27]} 10. Nd2 {[%emt 0:00:00]} (10. Qd2 $14) 10... Na6 {[%emt 0:00:43] The position is equal.} 11. f3 {[%emt 0:00:00][%cal Rf3e4]} cxd5 {[%emt 0:26:44]} 12. cxd5 {[%emt 0:00:00]} Nxd5 {[%emt 0:00:19] [#] ...Ne3 would now be deadly.} 13. Nxe4 $1 {[%emt 0:00:00]} Be6 {[%emt 0:00:14]} (13... Nab4 $5 14. a3 fxe4 15. axb4 Be6 $11 (15... Nxb4 16. Qd2 $11)) 14. Qd4 {[%emt 0:00:00]} Rf7 {[%emt 0:05:14]} 15. Nc3 {[%emt 0:00:00]} (15. Nhg5 $11 {keeps the balance.} Bxg5 16. Nxg5 Qxg5 17. f4) 15... Bf6 $17 {[%emt 0:01:24]} 16. Qd2 {[%emt 0:00:00] [#]} (16. Qd3 $17) 16... Qa5 $1 $36 {[%emt 0:01:46][%mdl 2048] Black is really pushing.} (16... Qb6+ 17. Nf2 Qa5 18. Rac1 $19) 17. Rac1 {[%emt 0:00:00] [#]} Rc8 {[%emt 0:02:22]} (17... Rc7 $1 $19 {[%cal Rf6c3]} 18. Ng5 Bxc3 (18... Bxg5 19. Qxg5 Nxc3 20. Qe3 $19) 19. Bxc3 Nxc3 20. Nxe6 Re8 21. Rxc3 (21. Nxc7 $2 Nxe2+ $19) 21... Qxc3 22. Qxc3 Rxc3) 18. Nf4 $2 {[%emt 0:00:00][%mdl 8192] Loses the game.} (18. Ng5 $1 $15 Bxg5 (18... Bxc3 19. Bxc3 Rxc3 20. Nxe6 $16) 19. Qxg5 Rxc3 (19... Nxc3 20. Qe3 $11) 20. Rxc3 Nxc3 21. Qe3 Qxa2 (21... Nxa2 22. Qxe6 Qb6+ 23. Kh1 $11) 22. Qxc3) 18... Nxf4 {[%emt 0:00:21]} (18... Bxc3 19. Bxc3 (19. Nxe6 $2 Qc5+ 20. Nxc5 Bxd2 $19) 19... Rxc3 20. Nxe6 Qb6+ 21. Kh1 Rxc1 22. Rxc1 $14) 19. gxf4 {[%emt 0:00:00]} Rfc7 {[%emt 0:02:38]} 20. Qe3 {[%emt 0:00:00]} Qc5 {[%emt 0:01:08]} (20... Rxc3 $2 {perishes.} 21. Qxe6+ Kf8 22. Rxc3 (22. Bxc3 Rxc3 23. Rxc3 Qxc3 $18) (22. Qxd6+ Be7 $18) 22... Rxc3 23. Qxd6+ (23. Bxc3 Qc5+ 24. Kh1 Bxc3 $18) 23... Be7 24. Bxc3 Qxc3 25. Qe5 Qc5+ 26. Kh1 $18) 21. Qxc5 {[%emt 0:00:00] Black is clearly winning.} Rxc5 {[%emt 0:00:05]} 22. Na4 {[%emt 0:00:00]} Bxb2 {[%emt 0:00:06]} 23. Nxc5 {[%emt 0:00:00]} dxc5 {[%emt 0:03:22]} (23... Rxc5 24. Rxc5 Bd4+ (24... dxc5 $2 25. e3 $19) (24... Nxc5 $2 25. Rd1 $19) 25. Kh1 Bxc5 (25... dxc5 $2 26. e3 $19) 26. Rd1) 24. Rcd1 {[%emt 0:00:00]} Bd4+ {[%emt 0:00:16]} 25. Kh1 {[%emt 0:00:00]} Be3 {[%emt 0:00:02][%cal Oa6b4]} 26. Rd3 {[%emt 0:00:00]} Bxf4 {[%emt 0:00:06]} 27. e3 {[%emt 0:00:00]} Nb4 {[%emt 0:00:14][%csl LRa2,LRd3]} 28. Rd2 {[%emt 0:00:00]} Bxe3 {[%emt 0:05:16]} 29. Rd6 {[%emt 0:00:00]} Rc6 {[%emt 0:04:41]} 30. Rd8+ {[%emt 0:02:36]} Kf7 {[%emt 0:00:08][%cal Oc6a6]} 31. Rb8 {[%emt 0:00:34]} Rc7 {[%emt 0:00:19][%cal Of5f4] And now ...f4! would win.} 32. Rd1 {[%emt 0:03:03]} Nc6 {[%emt 0:00:51]} 33. Rh8 {[%emt 0:00:43]} h6 {[%emt 0:00:20]} 34. f4 {[%emt 0:05:25]} Bxf4 {[%emt 0:01:04] ...b5 is the strong threat.} 35. Rf1 {[%emt 0:00:15]} Bd6 {[%emt 0:01:02]} 36. Bh3 {[%emt 0:00:18]} Nd4 {[%emt 0:00:19]} 37. Rd8 {[%emt 0:00:50]} Ke7 {[%emt 0:00:29] Weighted Error Value: White=0.52/Black=0.10 (very precise) .  Loses game:     	White=1     	---        Mistake:       	White=3     	Black=1      Inaccurate:     	White=2     	Black=1      OK:         	White=7     	Black=7      Best:        	---       	Black=5      Strong:       	---       	Black=1} 0-1

[Event "XVI Memorial Lezcano Montalvo 2024"]
[Site "Gran Canaria"]
[Date "2024.03.26"]
[Round "4.13"]
[White "Loiacono, Leonardo"]
[Black "Arnaiz Yanes, Miguel Angel"]
[Result "1-0"]
[ECO "C55"]
[WhiteElo "2316"]
[BlackElo "1947"]
[Annotator "RC"]
[PlyCount "63"]
[EventDate "2024.03.23"]
[EventType "swiss"]
[EventCountry "ESP"]
[SourceTitle "playchess.com"]
[Source "ChessBase"]
[SourceQuality "1"]
[TimeControl "5400+30"]

1. e4 {[%emt 0:00:03]} e5 {[%emt 0:00:09]} 2. Bc4 {[%emt 0:00:30]} Nc6 {[%emt 0:01:00]} 3. d3 {[%emt 0:01:41]} d6 {[%emt 0:01:28]} 4. Nf3 {[%emt 0:02:04]} h6 {[%emt 0:00:46]} 5. Nc3 {[%emt 0:02:34]} Nf6 {[%emt 0:00:23]} 6. h3 {[%emt 0:00:49]} Na5 {[%emt 0:03:18]} 7. Be3 {[%emt 0:04:29]} Nxc4 {[%emt 0:00:40]} 8. dxc4 {[%emt 0:00:03]} Bd7 {[%emt 0:00:30]} 9. Qd3 {[%emt 0:01:09]} Qe7 {[%emt 0:01:17]} 10. g4 {[%emt 0:06:33]} g5 {[%emt 0:01:11]} 11. O-O-O {[%emt 0:02:21]} Bc6 {[%emt 0:00:27]} 12. Kb1 {[%emt 0:02:06]} Bg7 {[%emt 0:00:12]} 13. Nd5 {[%emt 0:04:07]} Nxd5 {[%emt 0:02:15]} 14. cxd5 {[%emt 0:00:10]} Bd7 {[%emt 0:00:08]} 15. c4 {[%emt 0:00:58]} b6 {[%emt 0:00:51]} 16. Nd2 {[%emt 0:02:33]} O-O {[%emt 0:04:14]} 17. Nf1 {[%emt 0:01:10]} c5 {[%emt 0:00:45]} 18. dxc6 {[%emt 0:00:17]} Bxc6 {[%emt 0:00:11]} 19. Ng3 {[%emt 0:00:04]} Rfd8 {[%emt 0:00:33]} 20. Nf5 {[%emt 0:03:00]} Qb7 {[%emt 0:00:18]} 21. f3 {[%emt 0:00:43]} b5 {[%emt 0:00:09]} 22. Nxd6 {[%emt 0:09:08]} Rxd6 {[%emt 0:06:36]} 23. Qxd6 {[%emt 0:00:11]} bxc4 {[%emt 0:00:09]} 24. Ka1 {[%emt 0:09:30]} c3 {[%emt 0:08:25]} 25. bxc3 {[%emt 0:03:25]} Bf8 {[%emt 0:01:59]} 26. Qxe5 {[%emt 0:03:55]} Bg7 {[%emt 0:00:18]} 27. Qa5 {[%emt 0:00:05]} Ba4 {[%emt 0:05:21]} 28. Rd8+ {[%emt 0:00:22]} Rxd8 {[%emt 0:01:25]} 29. Qxd8+ {[%emt 0:00:04]} Kh7 {[%emt 0:00:06]} 30. Bd4 {[%emt 0:00:47]} Bc2 {[%emt 0:00:50]} 31. Bxg7 {[%emt 0:00:17]} Kxg7 {[%emt 0:00:14]} 32. Qd2 {[%emt 0:00:06]} 1-0

[Event "XVI Memorial Lezcano Montalvo 2024"]
[Site "Gran Canaria"]
[Date "2024.03.26"]
[Round "4.14"]
[White "Camino Carrio, Nicanor"]
[Black "Fiorito, Fabian"]
[Result "0-1"]
[ECO "B41"]
[WhiteElo "1962"]
[BlackElo "2251"]
[Annotator "RC"]
[PlyCount "105"]
[EventDate "2024.03.23"]
[EventType "swiss"]
[EventCountry "ESP"]
[SourceTitle "playchess.com"]
[Source "ChessBase"]
[SourceQuality "1"]
[TimeControl "5400+30"]

1. e4 {[%emt 0:00:08]} c5 {[%emt 0:00:19]} 2. Nf3 {[%emt 0:00:14]} e6 {[%emt 0:00:31]} 3. d4 {[%emt 0:00:40]} cxd4 {[%emt 0:00:05]} 4. Nxd4 {[%emt 0:00:06]} a6 {[%emt 0:01:03]} 5. c4 {[%emt 0:01:13]} Nf6 {[%emt 0:00:11]} 6. Nc3 {[%emt 0:00:21]} Qc7 {[%emt 0:00:11]} 7. a3 {[%emt 0:01:04]} b6 {[%emt 0:01:11]} 8. Bd3 {[%emt 0:03:00]} Bc5 {[%emt 0:03:03]} 9. Nf3 {[%emt 0:04:30]} Bb7 {[%emt 0:02:24]} 10. O-O {[%emt 0:02:42]} Nc6 {[%emt 0:01:06]} 11. b4 {[%emt 0:02:35]} Bd6 {[%emt 0:02:11]} 12. Bd2 {[%emt 0:05:18]} Ng4 {[%emt 0:02:59]} 13. h3 {[%emt 0:03:57]} Nge5 {[%emt 0:01:09]} 14. Nxe5 {[%emt 0:02:54]} Nxe5 {[%emt 0:00:14]} 15. Qe2 {[%emt 0:00:24]} O-O {[%emt 0:01:31]} 16. Rac1 {[%emt 0:01:09]} Nxd3 {[%emt 0:02:27]} 17. Qxd3 {[%emt 0:00:06]} f5 {[%emt 0:00:24]} 18. exf5 {[%emt 0:02:08]} Rxf5 {[%emt 0:00:08]} 19. Ne4 {[%emt 0:04:05]} Bh2+ {[%emt 0:01:53]} 20. Kh1 {[%emt 0:05:16]} Raf8 {[%emt 0:00:12]} 21. f3 {[%emt 0:03:27]} Be5 {[%emt 0:05:11]} 22. Be3 {[%emt 0:01:36]} Bb2 {[%emt 0:07:37]} 23. Rcd1 {[%emt 0:09:05]} d5 {[%emt 0:05:13]} 24. Nd2 {[%emt 0:03:37]} Be5 {[%emt 0:03:45]} 25. cxd5 {[%emt 0:43:25]} Bxd5 {[%emt 0:03:56]} 26. Rc1 {[%emt 0:00:00]} Qb7 {[%emt 0:01:20]} 27. Kg1 {[%emt 0:00:00]} b5 {[%emt 0:03:06]} 28. Bc5 {[%emt 0:00:00]} R8f7 {[%emt 0:00:44]} 29. Ne4 {[%emt 0:00:00]} h6 {[%emt 0:01:34]} 30. Rfe1 {[%emt 0:00:00]} Qb8 {[%emt 0:06:45]} 31. Bd4 {[%emt 0:00:00]} Bf4 {[%emt 0:02:25]} 32. Be3 {[%emt 0:00:00]} Bh2+ {[%emt 0:02:00]} 33. Kh1 {[%emt 0:00:00]} Bc4 {[%emt 0:01:53]} 34. Qd4 {[%emt 0:00:00]} Rd5 {[%emt 0:02:57]} 35. Qb2 {[%emt 0:00:00]} Be5 {[%emt 0:01:28]} 36. Qf2 {[%emt 0:00:00]} Rd3 {[%emt 0:01:13]} 37. Qh4 {[%emt 0:00:00]} Rxa3 {[%emt 0:02:44]} 38. Qg4 {[%emt 0:00:00]} Rxe3 {[%emt 0:05:08]} 39. Rxe3 {[%emt 0:00:00]} Bf4 {[%emt 0:00:01]} 40. Rce1 {[%emt 0:00:00]} Bxe3 {[%emt 0:00:15]} 41. Rxe3 {[%emt 0:00:00]} Qe5 {[%emt 0:05:16]} 42. Re1 {[%emt 0:00:02]} Qb2 {[%emt 0:00:32]} 43. Nd6 {[%emt 0:01:52]} Qd2 {[%emt 0:14:15]} 44. Rxe6 {[%emt 0:00:37]} Rf4 {[%emt 0:04:13]} 45. Re8+ {[%emt 0:02:04]} Kh7 {[%emt 0:00:01]} 46. Qd7 {[%emt 0:00:27]} Qc1+ {[%emt 0:03:49]} 47. Kh2 {[%emt 0:00:07]} Rf6 {[%emt 0:01:02]} 48. Re7 {[%emt 0:01:19]} Qf4+ {[%emt 0:00:37]} 49. Kg1 {[%emt 0:00:19]} Qd4+ {[%emt 0:00:14]} 50. Kh1 {[%emt 0:00:30]} Rxd6 {[%emt 0:03:04]} 51. Re8 {[%emt 0:05:43]} Rf6 {[%emt 0:00:30]} 52. Qd8 Qf4 {[%emt 0:00:30]} 53. Qd4 {[%emt 0:01:00]} 0-1

[Event "XVI Memorial Lezcano Montalvo 2024"]
[Site "Gran Canaria"]
[Date "2024.03.26"]
[Round "4.15"]
[White "Martin Ramos, Daniel"]
[Black "Damia, Angelo"]
[Result "1/2-1/2"]
[ECO "B02"]
[WhiteElo "1961"]
[BlackElo "2240"]
[Annotator "RC"]
[PlyCount "43"]
[EventDate "2024.03.23"]
[EventType "swiss"]
[EventCountry "ESP"]
[SourceTitle "playchess.com"]
[Source "ChessBase"]
[SourceQuality "1"]
[TimeControl "5400+30"]

1. e4 {[%emt 0:00:09]} Nf6 {[%emt 0:01:21]} 2. Nc3 {[%emt 0:01:24]} d5 {[%emt 0:01:09]} 3. e5 {[%emt 0:00:50]} d4 {[%emt 0:00:05]} 4. exf6 {[%emt 0:00:40]} dxc3 {[%emt 0:00:04]} 5. fxg7 {[%emt 0:00:35]} cxd2+ {[%emt 0:00:09]} 6. Qxd2 {[%emt 0:00:12]} Qxd2+ {[%emt 0:00:06]} 7. Bxd2 {[%emt 0:00:07]} Bxg7 {[%emt 0:00:03]} 8. O-O-O {[%emt 0:00:25]} Nc6 {[%emt 0:05:48]} 9. Bb5 {[%emt 0:01:50]} Bf5 {[%emt 0:08:06]} 10. Ne2 {[%emt 0:00:58]} O-O-O {[%emt 0:00:31]} 11. Bxc6 {[%emt 0:00:15]} bxc6 {[%emt 0:00:04]} 12. Bc3 {[%emt 0:00:15]} e5 {[%emt 0:29:12]} 13. b3 {[%emt 1:29:20]} Rd5 {[%emt 0:03:20]} 14. Ng3 {[%emt 0:00:00]} Bg6 {[%emt 0:00:15]} 15. Rhe1 {[%emt 0:00:00]} Re8 {[%emt 0:05:14]} 16. Kb2 {[%emt 0:00:00]} Re6 {[%emt 0:05:45]} 17. Nf1 {[%emt 0:00:00]} Rxd1 {[%emt 0:09:03]} 18. Rxd1 {[%emt 0:00:00]} Bh6 {[%emt 0:00:21]} 19. Re1 {[%emt 0:00:00]} e4 {[%emt 0:00:08]} 20. Ne3 {[%emt 0:00:00]} f5 {[%emt 0:01:58]} 21. g3 {[%emt 0:00:00]} Bxe3 {[%emt 0:11:53]} 22. Rxe3 {[%emt 0:00:00]} 1/2-1/2

[Event "XVI Memorial Lezcano Montalvo 2024"]
[Site "Gran Canaria"]
[Date "2024.03.26"]
[Round "4.16"]
[White "Calzetta Ruiz, Monica"]
[Black "Ramirez Maillo, Juan Adonay"]
[Result "1-0"]
[ECO "B33"]
[WhiteElo "2239"]
[BlackElo "1918"]
[Annotator "RC"]
[PlyCount "49"]
[EventDate "2024.03.23"]
[EventType "swiss"]
[EventCountry "ESP"]
[SourceTitle "playchess.com"]
[Source "ChessBase"]
[SourceQuality "1"]
[TimeControl "5400+30"]

1. e4 {[%emt 0:00:03]} c5 {[%emt 0:00:06]} 2. Nc3 {[%emt 0:00:10]} Nc6 {[%emt 0:00:32]} 3. Nf3 {[%emt 0:01:56]} Nf6 {[%emt 0:01:31]} 4. d4 {[%emt 0:15:21]} cxd4 {[%emt 0:00:34]} 5. Nxd4 {[%emt 0:00:05]} e5 {[%emt 0:05:04]} 6. Ndb5 {[%emt 0:00:31]} d6 {[%emt 0:00:18]} 7. Bg5 {[%emt 0:00:29]} a6 {[%emt 0:00:52]} 8. Na3 {[%emt 0:00:28]} Be7 {[%emt 0:01:03]} 9. Nc4 {[%emt 0:03:43]} O-O {[%emt 0:11:36]} 10. Bxf6 {[%emt 0:02:26]} Bxf6 {[%emt 0:01:13]} 11. Qxd6 {[%emt 0:01:32]} Qxd6 {[%emt 0:04:40]} 12. Nxd6 {[%emt 0:00:07]} Bg5 {[%emt 0:05:21]} 13. Nxc8 {[%emt 0:21:40]} Raxc8 {[%emt 0:00:08]} 14. Bd3 {[%emt 0:00:04]} Nb4 {[%emt 0:03:06]} 15. Rd1 {[%emt 0:01:39]} Rfd8 {[%emt 0:02:04]} 16. a3 {[%emt 0:13:23]} Nc6 {[%emt 0:04:07]} 17. h4 {[%emt 0:01:05]} Bh6 {[%emt 0:00:29]} 18. Nd5 {[%emt 0:00:52]} Kf8 {[%emt 0:00:36]} 19. O-O {[%emt 0:01:17]} Ne7 {[%emt 0:01:28]} 20. Nb6 {[%emt 0:06:29]} Rc6 {[%emt 0:02:10]} 21. Bb5 {[%emt 0:00:58]} Rcd6 {[%emt 0:06:24]} 22. Nd7+ {[%emt 0:00:07]} Ke8 {[%emt 0:01:30]} 23. Rxd6 {[%emt 0:01:38]} axb5 {[%emt 0:00:04]} 24. Rfd1 {[%emt 0:00:15]} Nc6 {[%emt 0:00:57]} 25. Nc5 {[%emt 0:03:45]} 1-0

[Event "XVI Memorial Lezcano Montalvo 2024"]
[Site "Gran Canaria"]
[Date "2024.03.26"]
[Round "4.17"]
[White "Hernandez Leon, Alberto"]
[Black "Garbezza, Davide"]
[Result "1-0"]
[ECO "E08"]
[WhiteElo "2207"]
[BlackElo "1888"]
[Annotator "RC"]
[PlyCount "91"]
[EventDate "2024.03.23"]
[EventType "swiss"]
[EventCountry "ESP"]
[SourceTitle "playchess.com"]
[Source "ChessBase"]
[SourceQuality "1"]
[TimeControl "5400+30"]

1. d4 {[%emt 0:00:07]} d5 {[%emt 0:00:15]} 2. c4 {[%emt 0:00:27]} e6 {[%emt 0:00:12]} 3. Nf3 {[%emt 0:00:09]} Nf6 {[%emt 0:00:14]} 4. g3 {[%emt 0:00:20]} Bb4+ {[%emt 0:00:20]} 5. Bd2 {[%emt 0:00:10]} Be7 {[%emt 0:00:06]} 6. Bg2 {[%emt 0:00:39]} O-O {[%emt 0:00:14]} 7. O-O {[%emt 0:00:24]} Nbd7 {[%emt 0:00:13]} 8. Qc2 {[%emt 0:04:24]} c6 {[%emt 0:00:22]} 9. Bf4 {[%emt 0:01:21]} b6 {[%emt 0:00:42]} 10. Rd1 {[%emt 0:04:21]} a5 {[%emt 0:01:07]} 11. Nbd2 {[%emt 0:05:56]} Ba6 {[%emt 0:17:42]} 12. e4 {[%emt 0:04:02]} Nxe4 {[%emt 0:08:29]} 13. Nxe4 {[%emt 0:00:36]} dxe4 {[%emt 0:00:05]} 14. Ne5 {[%emt 0:01:26]} Nxe5 {[%emt 0:03:14]} 15. dxe5 {[%emt 0:00:46]} Qc7 {[%emt 0:01:36]} 16. Bxe4 {[%emt 0:02:18]} h6 {[%emt 0:03:33]} 17. h4 {[%emt 0:00:28]} Rfd8 {[%emt 0:14:20]} 18. Qe2 {[%emt 0:00:58]} Rxd1+ {[%emt 0:05:51]} 19. Rxd1 {[%emt 0:00:09]} Rd8 {[%emt 0:00:44]} 20. Rxd8+ {[%emt 0:05:54]} Qxd8 {[%emt 0:07:38]} 21. Bxc6 {[%emt 0:01:14]} Qd4 {[%emt 0:00:46]} 22. b3 {[%emt 0:00:48]} Ba3 {[%emt 0:06:45]} 23. Qd2 {[%emt 0:06:12]} Bb2 {[%emt 0:01:06]} 24. Qxd4 {[%emt 0:01:32]} Bxd4 {[%emt 0:00:03]} 25. Kf1 {[%emt 0:00:40]} Kf8 {[%emt 0:01:39]} 26. Ke2 {[%emt 0:00:23]} Ke7 {[%emt 0:00:43]} 27. Be3 {[%emt 0:01:14]} Bc5 {[%emt 0:10:03]} 28. g4 {[%emt 0:03:01]} f6 {[%emt 0:02:32]} 29. Bf4 {[%emt 0:05:38]} g5 {[%emt 0:03:34]} 30. exf6+ {[%emt 0:01:19]} Kxf6 {[%emt 0:00:02]} 31. hxg5+ {[%emt 0:00:06]} hxg5 {[%emt 0:00:04]} 32. Bc7 {[%emt 0:00:07]} Ke7 {[%emt 0:04:34]} 33. f3 {[%emt 0:01:08]} Bc8 {[%emt 0:01:53]} 34. Kd3 {[%emt 0:02:37]} Bd7 {[%emt 0:01:10]} 35. Bxd7 {[%emt 0:00:11]} Kxd7 {[%emt 0:00:01]} 36. Be5 {[%emt 0:00:08]} Be7 {[%emt 0:03:09]} 37. Bd4 {[%emt 0:00:55]} Bd8 {[%emt 0:00:57]} 38. Ke4 {[%emt 0:01:55]} Kd6 {[%emt 0:01:28]} 39. Be3 {[%emt 0:02:38]} Kc6 {[%emt 0:01:25]} 40. Ke5 {[%emt 0:00:59]} Kd7 {[%emt 0:00:24]} 41. a4 {[%emt 0:00:27]} Bc7+ {[%emt 0:00:44]} 42. Kf6 {[%emt 0:00:23]} Bd8+ {[%emt 0:00:32]} 43. Kg6 {[%emt 0:00:36]} Kd6 {[%emt 0:00:29]} 44. Bxg5 {[%emt 0:00:34]} Bxg5 {[%emt 0:00:17]} 45. Kxg5 {[%emt 0:00:07]} Ke5 {[%emt 0:00:41]} 46. Kh6 {[%emt 0:43:43]} 1-0